fUST/lending_fUST_20250705
["ID","MTS","AMOUNT","RATE_DAILY","PERIOD"]
[369633960,1751664645220,-500.0,0.000191,2]
[369633961,1751664645229,-407.63912968,0.000191,2]
[369633962,1751664645239,-160.14824288,0.000191,2]
[369633963,1751664645248,-500.0,0.000191,2]
[369633964,1751664645257,-264.24725864,0.000191,2]
[369633965,1751664645269,-500.22550654,0.000191,2]
[369633966,1751664645278,-500.0,0.000191,2]
[369633967,1751664645287,-161.13558689,0.000191,2]
[369633968,1751664645296,-500.0,0.000191,2]
[369633969,1751664645305,-258.60837723,0.000191,2]
[369633970,1751664645314,-500.0,0.000191,2]
[369633971,1751664645329,-500.0,0.000191,2]
[369633972,1751664645338,-160.14824667,0.000191,2]
[369633973,1751664645347,-500.39285804,0.000191,2]
[369633974,1751664645356,-153.40150232,0.000191,2]
[369633975,1751664645365,-500.6887514,0.000191,2]
[369633976,1751664645374,-500.41343472,0.000191,2]
[369633977,1751664645383,-500.35964314,0.000191,2]
[369633978,1751664645392,-500.37056422,0.000191,2]
[369633979,1751664645401,-500.28897927,0.000191,2]
[369633980,1751664645410,-500.0,0.000191,2]
[369633981,1751664645419,-500.0,0.000191,2]
[369633982,1751664645429,-642.52145614,0.000191,2]
[369633983,1751664645439,-500.0,0.000191,2]
[369633984,1751664645449,-500.0,0.000191,2]
[369633985,1751664645458,-500.0,0.000191,2]
[369633986,1751664645468,-500.0,0.000191,2]
[369633987,1751664645478,-500.0,0.000191,2]
[369633988,1751664645487,-620.76693594,0.00019107,2]
[369633989,1751664645496,-199.25,0.00019141,2]
[369633990,1751664645506,-460.0,0.00019178,2]
[369633991,1751664645516,-461.67,0.00019178,2]
[369633992,1751664645526,-460.0,0.00019178,2]
[369633993,1751664645536,-807.48,0.00019178,2]
[369633994,1751664645545,-424.24,0.00019178,2]
[369633995,1751664645556,-460.0,0.00019178,2]
[369633996,1751664645565,-322.251516,0.00019178,2]
[369633997,1751664645574,-666.0,0.00019178,2]
[369633998,1751664645583,-199.25,0.00019223,2]
[369633999,1751664645593,-2809.85956772,0.00019248,2]
[369634000,1751664645602,-199.25,0.00019304,2]
[369634001,1751664645613,-281.104464,0.00019329,2]
[369634002,1751664645623,-51334.93300334,0.00019329,2]
[369634003,1751664645632,-620.76693594,0.00019383,2]
[369634004,1751664645642,-199.25,0.00019386,2]
[369634005,1751664645651,-288.17526949,0.00019452,2]
[369634006,1751664645661,-461.67,0.00019452,2]
[369634007,1751664645670,-460.0,0.00019452,2]
[369634008,1751664645679,-807.48,0.00019452,2]
[369634009,1751664645689,-460.0,0.00019452,2]
[369634010,1751664645698,-1015.67,0.000195,30]
[369634011,1751664645708,-367.535707,0.00019535,2]
[369634012,1751664645717,-500.72075072,0.00019648,2]
[369634013,1751664645726,-1000.0,0.00019648,2]
[369634014,1751664645735,-1000.0,0.00019648,2]
[369634015,1751664645744,-500.44020076,0.00019648,2]
[369634016,1751664645755,-1000.74356578,0.00019648,2]
[369634017,1751664645764,-1000.0,0.00019648,2]
[369634018,1751664645774,-1000.0,0.00019648,2]
[369634019,1751664645784,-1000.0,0.00019648,2]
[369634020,1751664645793,-1000.0,0.00019648,2]
[369634021,1751664645803,-1000.0,0.00019648,2]
[369634022,1751664645812,-1000.0,0.00019648,2]
[369634023,1751664645822,-1000.0,0.00019648,2]
[369634024,1751664645832,-1000.0,0.00019648,2]
[369634025,1751664645841,-1000.95657179,0.00019648,2]
[369634026,1751664645851,-1001.59291249,0.00019648,2]
[369634027,1751664645860,-1000.0,0.00019648,2]
[369634028,1751664645870,-1000.0,0.00019648,2]
[369634029,1751664645880,-620.76693594,0.00019659,2]
[369634030,1751664645889,-461.67,0.00019726,2]
[369634031,1751664645898,-460.0,0.00019726,2]
[369634032,1751664645908,-807.48,0.00019726,2]
[369634033,1751664645918,-344.9966591,0.00019726,2]
[369634034,1751664645927,-215.0738,0.00019862,2]
[369634035,1751664645936,-2000.0,0.000199,2]
[369634036,1751664645945,-2000.0,0.000199,2]
[369634037,1751664645955,-151.0,0.00019934,2]
[369634038,1751664645964,-151.0,0.00019934,2]
[369634039,1751664645973,-151.0,0.00019934,2]
[369634040,1751664645983,-620.76693594,0.00019934,2]
[369634041,1751664645992,-470.17056479,0.0001997,2]
[369634042,1751664646001,-500.0,0.0001997,2]
[369634043,1751664646010,-169.166666,0.00019982,2]
[369634044,1751664646020,-151.0,0.00019988,2]
[369634045,1751664646029,-151.0,0.00019988,2]
[369634046,1751664646039,-151.0,0.00019988,2]
[369634047,1751664646048,-151.17364,0.00019988,2]
[369634048,1751664646057,-151.0,0.00019988,2]
[369634049,1751664646066,-151.0,0.00019988,2]
[369634050,1751664646075,-35891.37755804,0.00019999,4]
[369636784,1751665632076,261.364399,0.00013699,2]
[369637876,1751665735678,1197.74380001,0.00015,2]
[369639288,1751665832452,-300.0,0.00015226,2]
[369639291,1751665832463,-300.0,0.00015226,2]
[369639293,1751665832475,-300.0,0.00015226,2]
[369639295,1751665832487,-300.0,0.00015226,2]
[369639297,1751665832497,-1200.0,0.00015226,2]
[369639298,1751665832508,-18676.6822753,0.00015228,2]
[369639300,1751665832519,-524.53428559,0.00016128,2]
[369639301,1751665832530,-50000.0,0.00016223,2]
[369639303,1751665832542,-997.46,0.00016224,3]
[369639306,1751665832554,-498.73,0.00016224,3]
[369639308,1751665832565,-249.37,0.00016224,3]
[369639310,1751665832577,-748.13,0.00016224,3]
[369639313,1751665832588,-1174.96713952,0.00016228,2]
[369639315,1751665832599,-955.9211703,0.00016228,2]
[369639317,1751665832609,-234.66027539,0.00016233,2]
[369639319,1751665832620,-500.0,0.00016233,2]
[369639321,1751665832630,-425.05325168,0.00016233,2]
[369639323,1751665832640,-500.0,0.00016233,2]
[369639325,1751665832650,-210523.99467565,0.00016234,2]
[369639329,1751665832667,-965.95504081,0.00016234,2]
[369639331,1751665832679,-412.33223187,0.00016234,2]
[369639333,1751665832694,-807.4204031,0.00016234,2]
[369639334,1751665832709,-960.05583154,0.00016234,2]
[369639336,1751665832723,-606.84252089,0.00016234,2]
[369639337,1751665832737,-83245.40992678,0.00016234,2]
[369639418,1751665838259,-500.0,0.00016222,2]
[369639419,1751665838270,-500.0,0.00016222,2]
[369639420,1751665838281,-194.71161533,0.00016222,2]
[369639421,1751665838294,-458.72798922,0.00016222,2]
[369639423,1751665838306,-18456.64095961,0.00016234,2]
[369639424,1751665838317,-160.0,0.00016327,2]
[369639425,1751665838328,-599.45098676,0.00016438,2]
[369639426,1751665838340,-590.52688919,0.00016438,2]
[369639427,1751665838352,-293.17,0.00016438,2]
[369639429,1751665838362,-460.0,0.00016438,2]
[369639430,1751665838373,-298.69505769,0.00016438,2]
[369639431,1751665838385,-220.77246231,0.00016438,2]
[369639432,1751665838397,-460.0,0.00016438,2]
[369639433,1751665838408,-360.25,0.00016438,2]
[369639439,1751665838616,-365.13414863,0.00016438,2]
[369639440,1751665838631,-460.0,0.00016438,2]
[369639441,1751665838642,-460.0,0.00016438,2]
[369639442,1751665838653,-460.0,0.00016438,2]
[369639443,1751665838664,-460.0,0.00016438,2]
[369639445,1751665838673,-460.0,0.00016438,2]
[369639446,1751665838683,-460.0,0.00016438,2]
[369639447,1751665838693,-460.0,0.00016438,2]
[369639448,1751665838704,-441.78273,0.00016438,2]
[369639449,1751665838716,-460.0,0.00016438,2]
[369639451,1751665838726,-460.0,0.00016438,2]
[369639452,1751665838737,-460.0,0.00016438,2]
[369639453,1751665838747,-460.0,0.00016438,2]
[369639454,1751665838758,-460.0,0.00016438,2]
[369639455,1751665838768,-460.0,0.00016438,2]
[369639457,1751665838777,-300.0,0.0001666,2]
[369639458,1751665838788,-539.0,0.00016712,2]
[369639459,1751665838797,-460.0,0.00016712,2]
[369639460,1751665838808,-460.0,0.00016712,2]
[369639461,1751665838818,-552.81863337,0.00016712,2]
[369639463,1751665838829,-460.0,0.00016712,2]
[369639464,1751665838839,-460.0,0.00016712,2]
[369639465,1751665838850,-500.0,0.00016712,2]
[369639466,1751665838862,-568.01916517,0.000169,2]
[369639467,1751665838873,-460.0,0.00016986,2]
[369639469,1751665838883,-226.72,0.00016986,2]
[369639470,1751665838893,-460.0,0.00016986,2]
[369639471,1751665838902,-460.0,0.00016986,2]
[369639472,1751665838913,-154.762121,0.00017065,2]
[369639473,1751665838923,-154.762121,0.00017065,2]
[369639475,1751665838933,-1174.9671395,0.00017146,2]
[369639476,1751665838944,-500.0,0.00017173,2]
[369639477,1751665838954,-500.0,0.00017173,2]
[369639478,1751665838963,-500.0,0.00017173,2]
[369639479,1751665838973,-500.0,0.00017173,2]
[369639480,1751665838982,-500.0,0.00017173,2]
[369639482,1751665838992,-500.0,0.00017173,2]
[369639483,1751665839002,-500.0,0.00017173,2]
[369639484,1751665839011,-454.69732628,0.00017173,2]
[369639485,1751665839021,-500.0,0.00017173,2]
[369639486,1751665839031,-568.01916492,0.00017176,2]
[369639488,1751665839041,-460.0,0.0001726,2]
[369639489,1751665839053,-460.0,0.0001726,2]
[369639490,1751665839063,-460.0,0.0001726,2]
[369639491,1751665839073,-524.53428559,0.00017297,2]
[369639492,1751665839083,-837.48520791,0.00017349,2]
[369639494,1751665839093,-847.91215827,0.00017349,2]
[369639495,1751665839103,-215.11345689,0.00017349,2]
[369639496,1751665839112,-160.0,0.00017349,2]
[369639497,1751665839124,-160.0,0.00017349,2]
[369639498,1751665839134,-230.40116161,0.00017349,2]
[369639500,1751665839144,-213.97741257,0.00017349,2]
[369639501,1751665839154,-160.0,0.00017349,2]
[369639502,1751665839163,-160.0,0.00017349,2]
[369639503,1751665839173,-160.0,0.00017349,2]
[369639504,1751665839183,-160.0,0.00017349,2]
[369639505,1751665839194,-160.0,0.00017349,2]
[369639507,1751665839203,-568.01916492,0.00017452,2]
[369639508,1751665839213,-460.0,0.00017534,2]
[369639509,1751665839222,-460.0,0.00017534,2]
[369639510,1751665839232,-460.0,0.00017534,2]
[369639511,1751665839242,-250.0,0.00017547,2]
[369639513,1751665839252,-1994.92,0.00017594,3]
[369639514,1751665839261,-997.46,0.00017594,3]
[369639515,1751665839271,-498.74,0.00017594,3]
[369639516,1751665839280,-250.0,0.00017627,2]
[369639517,1751665839291,-250.0,0.00017707,2]
[369639518,1751665839301,-500.0,0.00017721,2]
[369639520,1751665839311,-500.0,0.00017721,2]
[369639521,1751665839320,-623.15613976,0.00017721,2]
[369639522,1751665839330,-355.6320455,0.00017721,2]
[369639523,1751665839340,-500.0,0.00017721,2]
[369639524,1751665839350,-500.0,0.00017721,2]
[369639526,1751665839359,-500.0,0.00017721,2]
[369639527,1751665839369,-568.01916492,0.00017728,2]
[369639528,1751665839378,-250.0,0.00017788,2]
[369639529,1751665839388,-460.0,0.00017808,2]
[369639530,1751665839398,-460.0,0.00017808,2]
[369639531,1751665839408,-460.0,0.00017808,2]
[369639533,1751665839417,-250.0,0.00017868,2]
[369639534,1751665839427,-250.0,0.00017948,2]
[369639535,1751665839436,-638.21,0.00018,3]
[369639536,1751665839446,-500.0,0.00018,3]
[369639537,1751665839456,-500.0,0.00018,3]
[369639539,1751665839465,-500.0,0.00018,3]
[369639540,1751665839474,-500.0,0.00018,3]
[369639541,1751665839484,-151.0,0.00018,2]
[369639542,1751665839494,-568.01916492,0.00018003,2]
[369639543,1751665839505,-250.0,0.00018029,2]
[369639545,1751665839514,-1174.9671395,0.00018064,2]
[369639546,1751665839525,-460.0,0.00018082,2]
[369639547,1751665839535,-460.0,0.00018082,2]
[369639548,1751665839545,-460.0,0.00018082,2]
[369639549,1751665839556,-250.0,0.00018109,2]
[369639551,1751665839567,-250.0,0.00018189,2]
[369639552,1751665839576,-261.6,0.000182,2]
[369639553,1751665839587,-250.0,0.0001827,2]
[369639554,1751665839596,-568.01916492,0.00018279,2]
[369639555,1751665839606,-250.0,0.0001835,2]
[369639556,1751665839615,-460.0,0.00018356,2]
[369639558,1751665839625,-460.0,0.00018356,2]
[369639559,1751665839635,-460.0,0.00018356,2]
[369639560,1751665839647,-250.0,0.0001843,2]
[369639561,1751665839656,-524.53428559,0.00018466,2]
[369639562,1751665839666,-690.642,0.00018493,2]
[369639563,1751665839676,-500.0,0.00018493,2]
[369639565,1751665839686,-500.0,0.00018493,2]
[369639566,1751665839696,-500.0,0.00018493,2]
[369639567,1751665839707,-207.4,0.00018493,2]
[369639568,1751665839716,-25000.0,0.00018493,2]
[369639570,1751665839726,-4314.25130116,0.00018493,2]
[369639571,1751665839735,-151.0,0.00018493,2]
[369639573,1751665839745,-151.0,0.00018493,2]
[369639574,1751665839757,-154.762121,0.00018493,2]
[369639575,1751665839768,-154.762121,0.00018493,2]
[369639576,1751665839779,-250.0,0.00018511,2]
[369639577,1751665839788,-716.195754,0.00018548,2]
[369639579,1751665839797,-568.01916492,0.00018555,2]
[369639580,1751665839807,-250.0,0.00018591,2]
[369639581,1751665839817,-742.6949969,0.00018603,2]
[369639582,1751665839827,-460.0,0.0001863,2]
[369639583,1751665839838,-524.41,0.0001863,2]
[369639585,1751665839848,-460.0,0.0001863,2]
[369639587,1751665839858,-770.17471178,0.00018658,2]
[369639589,1751665839867,-250.0,0.00018671,2]
[369639590,1751665839879,-798.67117612,0.00018713,2]
[369639591,1751665839890,-250.0,0.00018751,2]
[369639592,1751665839900,-828.22200964,0.00018768,2]
[369639594,1751665839910,-939.22126279,0.00018823,2]
[369639596,1751665839920,-568.01916492,0.00018831,2]
[369639597,1751665839931,-250.0,0.00018832,2]
[369639598,1751665839942,-790.95581092,0.000189,2]
[369639599,1751665839952,-460.0,0.00018904,2]
[369639601,1751665839962,-460.0,0.00018904,2]
[369639602,1751665839972,-250.0,0.00018912,2]
[369639603,1751665839983,-1174.9671395,0.00018982,2]
[369639604,1751665839993,-250.0,0.00018992,2]
[369639605,1751665840004,-151.0,0.00019,2]
[369639607,1751665840013,-250.0,0.00019073,2]
[369639608,1751665840023,-178.089,0.00019103,2]
[369639609,1751665840032,-568.01916492,0.00019107,2]
[369639610,1751665840044,-478.51,0.00019178,2]
[369639611,1751665840054,-460.0,0.00019178,2]
[369639613,1751665840063,-257.801212,0.00019178,2]
[369639614,1751665840073,-666.0,0.00019178,2]
[369639615,1751665840084,-263.210399,0.00019329,2]
[369639616,1751665840094,-154.762121,0.00019329,2]
[369639617,1751665840104,-154.762121,0.00019329,2]
[369639618,1751665840115,-568.01916492,0.00019383,2]
[369639620,1751665840125,-460.0,0.00019452,2]
[369639621,1751665840135,-315.030606,0.00019588,2]
[369639622,1751665840146,-524.53428559,0.00019635,2]
[369639623,1751665840157,-568.01916492,0.00019659,2]
[369639624,1751665840168,-168.0,0.00019702,2]
[369639626,1751665840178,-460.0,0.00019726,2]
[369639627,1751665840187,-168.0,0.00019845,2]
[369639628,1751665840197,-215.0738,0.00019862,2]
[369639629,1751665840207,-693.97509156,0.000199,2]
[369639630,1751665840222,-1306.02490844,0.000199,2]
[369639632,1751665840232,-2000.0,0.000199,2]
[369639633,1751665840242,-1174.9671395,0.000199,2]
[369639634,1751665840251,-568.01916492,0.00019934,2]
[369639635,1751665840261,-520826.39007,0.00019999,4]
[369639636,1751665840271,-168.0,0.00019999,2]
[369639637,1751665840280,-4385.40949035,0.0002,2]
[369639639,1751665840289,-16744.90608014,0.0002,2]
[369639640,1751665840298,-500.0,0.0002,2]
[369639641,1751665840308,-500.0,0.0002,2]
[369639642,1751665840317,-500.0,0.0002,2]
[369639643,1751665840326,-377.0,0.0002,2]
[369639644,1751665840335,-510.0,0.0002,30]
[369639646,1751665840345,-6885.83877148,0.0002,2]
[369639647,1751665840354,-620.91338008,0.0002,2]
[369639648,1751665840363,-260.0,0.0002,14]
[369639649,1751665840374,-152.59983611,0.0002,2]
[369639650,1751665840384,-16670.37347724,0.0002,15]
[369639651,1751665840395,-200579.21615861,0.0002,2]
[369639653,1751665840405,-661.69169688,0.0002,2]
[369639654,1751665840414,-20000.70178821,0.0002,2]
[369639655,1751665840424,-500.0,0.0002,15]
[369639656,1751665840435,-178.276,0.0002,2]
[369639657,1751665840446,-151.0,0.0002,2]
[369639658,1751665840455,-186.058868,0.0002,2]
[369639660,1751665840464,-154.762121,0.0002,2]
[369639661,1751665840476,-154.762121,0.0002,2]
[369639662,1751665840487,-858.149215,0.0002,5]
[369639663,1751665840497,-151.0,0.0002,2]
[369639664,1751665840506,-300.0,0.0002,2]
[369639666,1751665840516,-252.14228,0.0002,30]
[369639667,1751665840526,-188.647809,0.0002,2]
[369639668,1751665840536,-151.33355125,0.0002,2]
[369639669,1751665840546,-4000.0,0.0002,4]
[369639670,1751665840556,-460.0,0.0002,2]
[369639671,1751665840565,-261.364399,0.00020187,2]
[369639673,1751665840575,-151.0,0.000202,3]
[369639674,1751665840584,-568.01916492,0.0002021,2]
[369639675,1751665840593,-460.0,0.00020273,2]
[369639676,1751665840602,-568.01916492,0.00020486,3]
[369639677,1751665840611,-160.0,0.000205,3]
[369639678,1751665840621,-9270.42732441,0.000205,2]
[369639680,1751665840631,-151.0,0.000205,4]
[369639681,1751665840641,-151.0,0.000205,3]
[369639682,1751665840651,-460.0,0.00020547,2]
[369639683,1751665840660,-500.37527667,0.0002058,10]
[369639684,1751665840669,-500.0,0.0002058,10]
[369639686,1751665840679,-151.0,0.00020581,2]
[369639687,1751665840688,-151.0,0.00020581,2]
[369639688,1751665840698,-154.762121,0.00020581,2]
[369639689,1751665840708,-154.762121,0.00020581,2]
[369639690,1751665840717,-151.0,0.00020581,2]
[369639691,1751665840727,-157.426427,0.00020581,2]
[369639693,1751665840737,-157.426427,0.00020581,2]
[369639694,1751665840747,-225.494757,0.00020581,2]
[369639695,1751665840756,-151.0,0.00020581,2]
[369639696,1751665840765,-151.0,0.00020581,2]
[369639697,1751665840775,-228.513247,0.00020581,2]
[369639699,1751665840784,-151.0,0.00020581,2]
[369639700,1751665840794,-151.0,0.00020581,2]
[369639701,1751665840802,-151.0,0.00020581,2]
[369639702,1751665840812,-151.0,0.00020581,2]
[369639703,1751665840822,-8023.41,0.000206,2]
[369639704,1751665840831,-1875.35,0.0002071,20]
[369639706,1751665840840,-568.01916492,0.00020762,3]
[369639707,1751665840850,-847.91215827,0.0002077,3]
[369639708,1751665840859,-160.0,0.0002077,3]
[369639709,1751665840869,-500.0,0.00020789,10]
[369639710,1751665840878,-500.0,0.00020789,10]
[369639711,1751665840887,-123984.37251656,0.0002079,2]
[369639713,1751665840897,-168.0,0.00020795,2]
[369639714,1751665840906,-847.91215827,0.000208,3]
[369639715,1751665840916,-524.53428559,0.00020803,2]
[369639716,1751665840926,-460.0,0.00020821,2]
[369639717,1751665840935,-160.0,0.00020822,3]
[369639719,1751665840944,-160.0,0.00020822,5]
[369639720,1751665840954,-500.0,0.00020826,10]
[369639721,1751665840963,-500.0,0.00020826,10]
[369639722,1751665840973,-500.0,0.00020826,10]
[369639723,1751665840982,-500.0,0.00020826,10]
[369639724,1751665840992,-500.0,0.00020826,10]
[369639726,1751665841001,-500.0,0.00020826,10]
[369639727,1751665841011,-500.0,0.00020826,10]
[369639728,1751665841022,-500.0,0.00020826,10]
[369639729,1751665841033,-2000.0,0.000209,2]
[369639730,1751665841046,-2000.0,0.000209,2]
[369639732,1751665841065,-169.33740932,0.000209,2]
[369639733,1751665841082,-500.0,0.00020999,10]
[369639734,1751665841093,-500.0,0.00020999,10]
[369639735,1751665841103,-500.0,0.00020999,10]
[369639736,1751665841113,-500.0,0.00020999,10]
[369639738,1751665841123,-500.0,0.00020999,10]
[369639739,1751665841133,-500.0,0.00020999,10]
[369639740,1751665841143,-500.0,0.00020999,10]
[369639741,1751665841153,-500.0,0.00020999,10]
[369639742,1751665841163,-500.0,0.00020999,10]
[369639743,1751665841172,-500.0,0.00020999,10]
[369639745,1751665841182,-500.0,0.00020999,10]
[369639746,1751665841192,-2152.0,0.00021,2]
[369639747,1751665841202,-2152.0,0.00021,2]
[369639748,1751665841211,-2152.0,0.00021,2]
[369639749,1751665841221,-2152.0,0.00021,2]
[369639750,1751665841231,-2152.0,0.00021,2]
[369639752,1751665841240,-2152.0,0.00021,2]
[369639753,1751665841250,-2152.0,0.00021,2]
[369639754,1751665841260,-2152.0,0.00021,2]
[369639755,1751665841269,-2152.0,0.00021,2]
[369639756,1751665841279,-29644.4350251,0.00021,2]
[369639758,1751665841288,-430276.70311251,0.00021,3]
[369639759,1751665841321,-12124.79662,0.00021,3]
[369639760,1751665841333,-1020.35907878,0.00021,3]
[369639762,1751665841344,-441.45730088,0.00021,3]
[369639763,1751665841356,-969.74033646,0.00021,3]
[369639764,1751665841367,-923.88020828,0.00021,3]
[369639765,1751665841380,-249.993024,0.00021,3]
[369639766,1751665841391,-403.67280999,0.00021,3]
[369639807,1751665843398,-1462.756819,0.0002,2]
[369639808,1751665843408,-11530.50792756,0.00021,3]
[369639838,1751665844897,-16178.79296,0.00021,3]
[369639875,1751665846747,-441.78273,0.00016438,2]
[369642790,1751666593620,248.29618,0.00013699,2]
[369642801,1751667032720,-1200.0,0.00016032,2]
[369642803,1751667032730,-15005.9009229,0.00016033,2]
[369642804,1751667032739,-155.0022029,0.000162,2]
[369642806,1751667032750,-234.9934279,0.00016338,2]
[369642808,1751667032759,-2170.03,0.00016428,3]
[369642809,1751667032768,-1085.01,0.00016428,3]
[369642810,1751667032777,-542.51,0.00016428,3]
[369642811,1751667032786,-271.25,0.00016428,3]
[369642812,1751667032795,-813.8,0.00016428,3]
[369642813,1751667032805,-397.04998099,0.00016437,2]
[369642815,1751667032814,-425.14288769,0.00016437,2]
[369642816,1751667032823,-500.0,0.00016437,2]
[369642818,1751667032833,-460.0,0.00016438,2]
[369642820,1751667032842,-460.0,0.00016438,2]
[369642823,1751667032851,-460.0,0.00016438,2]
[369642825,1751667032860,-460.0,0.00016438,2]
[369642827,1751667032869,-460.0,0.00016438,2]
[369642829,1751667032879,-571.24,0.00016438,2]
[369642831,1751667032888,-460.0,0.00016438,2]
[369642833,1751667032897,-460.0,0.00016438,2]
[369642835,1751667032906,-460.0,0.00016438,2]
[369642836,1751667032915,-238.64724259,0.00016438,2]
[369642837,1751667032924,-463.82,0.00016438,2]
[369642838,1751667032933,-460.0,0.00016438,2]
[369642839,1751667032943,-460.0,0.00016438,2]
[369642840,1751667032952,-460.0,0.00016438,2]
[369642841,1751667032962,-460.0,0.00016438,2]
[369642842,1751667032971,-460.0,0.00016438,2]
[369642843,1751667032980,-460.0,0.00016438,2]
[369642844,1751667032989,-460.0,0.00016438,2]
[369642845,1751667032999,-460.0,0.00016438,2]
[369642846,1751667033008,-460.0,0.00016438,2]
[369642847,1751667033017,-460.0,0.00016438,2]
[369642848,1751667033026,-460.0,0.00016438,2]
[369642849,1751667033036,-551.61345267,0.00016438,2]
[369642850,1751667033045,-460.0,0.00016438,2]
[369642851,1751667033054,-460.0,0.00016438,2]
[369642852,1751667033063,-460.0,0.00016438,2]
[369642853,1751667033072,-534.25,0.00016438,2]
[369642854,1751667033082,-460.26,0.00016438,2]
[369642855,1751667033091,-521.7,0.00016438,2]
[369642856,1751667033100,-460.0,0.00016438,2]
[369642857,1751667033109,-460.0,0.00016438,2]
[369642858,1751667033118,-460.0,0.00016438,2]
[369642859,1751667033127,-460.0,0.00016438,2]
[369642860,1751667033137,-460.0,0.00016438,2]
[369642861,1751667033146,-460.0,0.00016438,2]
[369642862,1751667033155,-460.0,0.00016438,2]
[369642863,1751667033165,-467.37,0.00016438,2]
[369642864,1751667033174,-287.98,0.00016438,2]
[369642865,1751667033184,-460.0,0.00016438,2]
[369642866,1751667033193,-460.0,0.00016438,2]
[369642867,1751667033203,-460.0,0.00016438,2]
[369642868,1751667033212,-460.0,0.00016438,2]
[369642869,1751667033222,-460.0,0.00016438,2]
[369642870,1751667033231,-460.0,0.00016438,2]
[369642871,1751667033241,-460.0,0.00016438,2]
[369642872,1751667033250,-460.0,0.00016438,2]
[369642873,1751667033259,-465.79,0.00016438,2]
[369642874,1751667033269,-460.0,0.00016438,2]
[369642875,1751667033278,-460.0,0.00016438,2]
[369642876,1751667033287,-460.0,0.00016438,2]
[369642877,1751667033296,-506.22,0.00016438,2]
[369642878,1751667033307,-460.0,0.00016438,2]
[369642879,1751667033316,-460.0,0.00016438,2]
[369642880,1751667033325,-460.0,0.00016438,2]
[369642881,1751667033335,-460.0,0.00016438,2]
[369642882,1751667033344,-460.0,0.00016438,2]
[369642883,1751667033354,-373.0790775,0.00016438,2]
[369642884,1751667033364,-460.0,0.00016438,2]
[369642885,1751667033373,-379.7241206,0.00016438,2]
[369642886,1751667033383,-460.0,0.00016438,2]
[369642887,1751667033392,-460.0,0.00016438,2]
[369642888,1751667033402,-487.75,0.00016438,2]
[369642889,1751667033411,-460.0,0.00016438,2]
[369642890,1751667033421,-460.0,0.00016438,2]
[369642891,1751667033430,-460.0,0.00016438,2]
[369642892,1751667033440,-460.0,0.00016438,2]
[369642893,1751667033450,-500.0,0.00016438,2]
[369642894,1751667033459,-460.0,0.00016438,2]
[369642895,1751667033469,-460.0,0.00016438,2]
[369642896,1751667033479,-548.62,0.00016438,2]
[369642897,1751667033488,-460.0,0.00016438,2]
[369642898,1751667033498,-460.0,0.00016438,2]
[369642899,1751667033508,-460.0,0.00016438,2]
[369642900,1751667033518,-460.0,0.00016438,2]
[369642901,1751667033527,-460.0,0.00016438,2]
[369642902,1751667033536,-460.0,0.00016438,2]
[369642903,1751667033546,-292.04569245,0.00016438,2]